{"text_format":"1","workbook":"xlsx","n_sheets":1,"sheets":["Champion"],"not_rendered":{"charts":0,"images":2,"macros":1,"external_links":0,"defined_names":0,"comments":0,"pivot_tables":0},"unopened":[],"bounds":{"document_bytes":16777216,"sheet_cells":100000,"rows_first":2000,"rows_last":500,"rows_between":2000,"halvings":0,"cell_chars":16384,"cell_head_chars":4096},"cells_cut":0,"cells_raw":0,"read":"whole","date_system":"1900"}

{"sheet":"Champion","index":0,"n_rows":44,"n_cols":26,"rows_kept":44,"cut":false,"hidden":false,"merged":[[33,1,33,13],[40,1,40,13],[41,1,41,13],[42,1,42,13],[31,1,31,13],[32,1,32,13],[34,1,34,13],[35,1,35,13],[37,1,37,13],[38,1,38,13],[26,1,26,5],[0,0,0,13],[1,0,1,13],[26,6,26,13],[28,8,28,13]]}
["Mitgliederliste \"KK Champion\", Eyholz-Visp"]
["für das Verbandsjahr 2023/24"]
[]
[]
["Nr.","Name/Vorname",null,"Geburts-datum","Strasse","Wohnort","Tel. Natel","E-Mail","Präsident","Spielleiter","Kassier","Aktuar","Lizenz","Kat. WM",null,null,null,"Mitglieder",null,null,null,"Lizenzierte Mitglieder"]
[]
[1,"Andenmatten Diana","D","1969-01-03","Seewjinenstr. 2","3930 Visp","079 486 79 02","andenmatten-dia@bluewin.ch",null,null,null,null,"x","A",null,null,null,"Kategorie Elite:",{"$f":"COUNTIF(N$7:N$26,\"E\")","v":2},"Kegler",null,"Kategorie Elite:",{"$f":"COUNTIF(Z$7:Z$26,\"E\") + COUNTIF(Z$7:Z$26,\"E \")","v":2},"Kegler",null,{"$f":"IF(ISBLANK(M7),\" \",(N7))","v":"A"}]
[2,"Andenmatten Louis","V","1946-03-14","Ennet-Brücke 9","3930 Visp","079 685 34 24",null,null,null,null,null,"x","B",null,null,null,"Kategorie A:",{"$f":"COUNTIF(N$7:N$26,\"A\")","v":3},"Kegler",null,"Kategorie A:",{"$f":"COUNTIF(Z$7:Z$26,\"A\") + COUNTIF(Z$7:Z$26,\"A \")","v":4},"Kegler",null,{"$f":"IF(ISBLANK(M8),\" \",(N8))","v":"B"}]
[3,"Andenmatten Lukas ",null,"1968-02-28","Pflanzettastr. 1","3930 Visp","078 629 11 51",null,null,null,null,null,"x","E",null,null,null,"Kategorie B:",{"$f":"COUNTIF(N$7:N$26,\"B\")","v":7},"Kegler",null,"Kategorie B:",{"$f":"COUNTIF(Z$7:Z$26,\"B\") + COUNTIF(Z$7:Z$26,\"B \")","v":4},"Kegler",null,"E"]
[4,"Bertholjotti Pascal",null,"1975-06-12","Bodenstrasse 15","3935 Bürchen","079 216 81 75","pascal.bertholjotti@dsm-firmenich.com","X",null,null,null,"x","E",null,null,null,"Total:",{"$f":"SUM(S7:S9)","v":12},"Kegler",null,"Total:",{"$f":"SUM(W7:W9)","v":10},"Kegler",null,"E"]
[5,"Burgener Ivan",null,"1969-12-04","chemin des Bochonis 1","3979 Grône","079 312 62 13",null,null,null,null,null,"x","A",null,null,null,null,null,null,null,null,null,null,null,"A"]
[6,"Lambrigger Klaus","V","1958-06-04","Mattaweg 6","3930 Visp","079 216 83 27",null,null,null,null,null,"x","B",null,null,null,null,null,null,null,null,null,null,null,"B"]
[7,"Moreillon Rémy","V","1957-10-01","Bauwerig 7","3970 Salgesch","079 410 34 28",null,null,null,null,null,"x","A ",null,null,"1 Jahr",null,null,null,null,null,null,null,null,"A "]
[8,"Noti Heinz",null,"1966-10-01","Sonnenweg 2","3937 Baltschieder ","079 695 39 53",null,null,null,"X",null,"x","B",null,null,null,null,null,null,null,null,null,null,null,"B"]
[9,"Probst Beat","V","1957-08-27","Neue Simplonstrasse 36","3900 Brig","079 755 29 20",null,null,null,null,null,null,"B",null,null,null,null,null,null,null,null,null,null,null," "]
[10,"Probst Maria","D","1960-09-14","Neue Simplonstrasse 36","3900 Brig","079 755 49 45",null,null,null,null,null,null,"B",null,null,null,null,null,null,null,null,null,null,null," "]
[11,"Schmidhalter Jeannine","D","1971-04-10","Pflanzettastr. 1","3930 Visp","079 473 47 22",null,null,null,null,"X",null,"B",null,null,null,null,null,null,null,null,null,null,null," "]
[12,"Soland Rolf","V","1946-08-27","Furkastrasse 39","3904 Naters","078 673 39 93","rolf_soland@bluewin.ch",null,"X",null,null,"x","A",null,null,null,null,null,null,null,null,null,null,null,"A"]
[13,"Volken Arnold","V","1944-03-10","Banhhofstrasse 8","3904 Naters","078 805 49 60",null,null,null,null,null,"x","B",null,null,null,null,null,null,null,null,null,null,null,"B"]
[14,null,null,null,null,null,null,null,null,null,null,null,null,null,null,null,null,null,null,null,null,null,null,null,null," "]
[15,null,null,null,null,null,null,null,null,null,null,null,null,null,null,null,null,null,null,null,null,null,null,null,null," "]
[16,null,null,null,null,null,null,null,null,null,null,null,null,null,null,null,null,null,null,null,null,null,null,null,null," "]
[17,null,null,null,null,null,null,null,null,null,null,null,null,null,null,null,null,null,null,null,null,null,null,null,null," "]
[18,null,null,null,null,null,null,null,null,null,null,null,null,null,null,null,null,null,null,null,null,null,null,null,null," "]
[19,null,null,null,null,null,null,null,null,null,null,null,null,null,null,null,null,null,null,null,null,null,null,null,null," "]
[20,null,null,null,null,null,null,null,null,null,null,null,null,null,null,null,null,null,null,null,null,null,null,null,null," "]
[null,"Ergänzungen und Korrekturen bitte rot in obige Tabelle nachtragen!                                          ",null,null,null,null," Kat. WM = Einteilung Kategorie Walliser-Einzelmeisterschaft"]
[]
[null,null,null,null,null,null,null,"Aktualisiert am:","2024-02-19"]
[]
[]
[null,"Die Mitgliederliste ist auf der Homepage unter der Rubrik \"MUTATIONEN MITGLIEDER 2023/24\" beim jeweiligen Verein im Excel-Format aufgeschaltet."]
[null,"https://www.wlkv.ch/"]
[null,"Mutationen während des Jahres können direkt auf dieser Liste vorgenommen werden. Bitte in rot."]
[null,"Liste von der Homepage herunterladen, ergänzen/korrigieren und an den Spiko als E-Mail \" wlkv-spiko@wlkv.ch \" oder"]
[null,"per Foto als Nachricht/WhatsApp 079 438 68 38 senden."]
[]
[null,"Lizenz pro Spieler der an der Herbst- und Frühjahrsmeisterschaft teilnimmt Fr. 100.00 gemäss DV Mai 2019."]
[null,"Spieler die an der Herbst- und Frühjahrsmeisterschaft teilnehmen, sind bei der Sparte Lizenz, mit einem \"x\" zu versehen."]
[]
[null,"Einzahlung auf Konto:"]
[null,"Banque Cantonale du Valais, 1950 Sion - Konto 19-81-6"]
[null,"IBAN: CH97 0076 5001 0223 4880 0"]
[null,"zugunsten von: Walliser Ladenkeglerverband, Dorfstrasse 72, 3911 Ried-Brig"]